lending/lending_fUSD_20240721
["ID","MTS","AMOUNT","RATE_DAILY","PERIOD"]
[332838868,1721562571557,-1549.16,0.00045753,60]
[332838869,1721562571592,-500.0,0.00045753,60]
[332838870,1721562571626,-500.0,0.00045753,60]
[332838871,1721562571659,-2094.02,0.00045753,60]
[332838872,1721562571692,-500.0,0.00045753,60]
[332838873,1721562571725,-1771.08,0.00045753,60]
[332838874,1721562571761,-500.0,0.00045753,60]
[332838875,1721562571981,-500.0,0.00045753,60]
[332838876,1721562572017,-500.0,0.00045753,60]
[332838877,1721562572054,-950.12,0.00045753,60]
[332838878,1721562572092,-847.76,0.00045753,60]
[332838879,1721562572128,-1765.44,0.00045753,60]
[332838880,1721562572164,-932.75,0.00045753,60]
[332838881,1721562572199,-1544.42,0.00045753,60]
[332838882,1721562572233,-790.55,0.00045753,60]
[332838883,1721562572268,-500.0,0.00045753,60]
[332838884,1721562572300,-500.0,0.00045753,60]
[332838885,1721562572333,-505.0369461,0.00045753,60]
[332838886,1721562572368,-984.42,0.00045753,60]
[332838887,1721562572400,-831.17,0.00045753,60]
[332838888,1721562572434,-532.82,0.00045753,60]
[332838889,1721562572467,-500.0,0.00045753,60]
[332838890,1721562572502,-581.87,0.00045753,60]
[332838891,1721562572536,-946.96,0.00045753,60]
[332838892,1721562572571,-702.37,0.00045753,60]
[332838893,1721562572607,-1583.64,0.00045753,60]
[332838894,1721562572641,-500.0,0.00045753,60]
[332838895,1721562572677,-500.0,0.00045753,60]
[332838896,1721562572710,-509.41086538,0.00045753,60]
[332838897,1721562572745,-394.76254759,0.00045753,60]
[332838898,1721562572778,-1587.58,0.00045753,60]
[332838899,1721562572812,-539.61,0.00045753,60]
[332838900,1721562572846,-500.0,0.00045753,60]
[332838901,1721562572878,-500.0,0.00045753,60]
[332838902,1721562572912,-500.0,0.00045753,60]
[332838903,1721562572947,-1013.58,0.00045753,60]
[332838904,1721562572983,-2048.3,0.00045753,60]
[332838905,1721562573022,-1686.99,0.00045753,60]
[332838906,1721562573067,-500.0,0.00045753,60]
[332838907,1721562573112,-625.39829149,0.00045753,60]
[332838908,1721562573154,-500.0,0.00045753,60]
[332838909,1721562573198,-500.0,0.00045753,60]
[332838910,1721562573236,-1366.59,0.00045753,60]
[332838911,1721562573275,-1659.73,0.00045753,60]
[332838912,1721562573314,-500.0,0.00045753,60]
[332838913,1721562573353,-909.73,0.00045753,60]
[332838914,1721562573397,-580.4,0.00045753,60]
[332838915,1721562573434,-500.0,0.00045753,60]
[332838916,1721562573471,-500.0,0.00045753,60]
[332838917,1721562573507,-2376.13,0.00045753,60]
[332838918,1721562573544,-913.7,0.00045753,60]
[332838919,1721562573584,-500.0,0.00045753,60]
[332838920,1721562573619,-500.0,0.00045753,60]
[332838921,1721562573654,-1861.5,0.00045753,60]
[332838922,1721562573689,-500.0,0.00045753,60]
[332838923,1721562573725,-1403.22,0.00045753,60]
[332838924,1721562573760,-500.0,0.00045753,60]
[332838925,1721562573797,-1119.61,0.00045753,60]
[332838926,1721562573834,-150.0,0.00045753,60]
[332838927,1721562573870,-500.0,0.00045753,60]
[332838928,1721562573908,-500.0,0.00045753,60]
[332838929,1721562573945,-1244.18,0.00045753,60]
[332838930,1721562573984,-500.0,0.00045753,60]
[332838931,1721562574020,-500.0,0.00045753,60]
[332838932,1721562574056,-1864.71,0.00045753,60]
[332838933,1721562574093,-2314.69,0.00045753,60]
[332838934,1721562574129,-993.91,0.00045753,60]
[332838935,1721562574166,-500.0,0.00045753,60]
[332838936,1721562574203,-500.0,0.00045753,60]
[332838937,1721562574241,-2457.36,0.00045753,60]
[332838938,1721562574279,-557.62,0.00045753,60]
[332838939,1721562574316,-500.0,0.00045753,60]
[332838940,1721562574354,-500.0,0.00045753,60]
[332838941,1721562574392,-692.68,0.00045753,60]
[332838942,1721562574428,-500.0,0.00045753,60]
[332838943,1721562574465,-500.0,0.00045753,60]
[332838944,1721562574502,-500.0,0.00045753,60]
[332838945,1721562574539,-1338.07,0.00045753,60]
[332838946,1721562574577,-789.11,0.00045753,60]
[332838947,1721562574614,-1241.72,0.00045753,60]
[332838948,1721562574652,-1701.55,0.00045753,60]
[332838949,1721562574689,-1872.58,0.00045753,60]
[332838950,1721562574727,-1631.15,0.00045753,60]
[332838951,1721562574762,-500.0,0.00045753,60]
[332838952,1721562574798,-500.0,0.00045753,60]
[332838953,1721562574834,-578.23,0.00045753,60]
[332838954,1721562574870,-582.44,0.00045753,60]
[332838955,1721562574909,-647.8,0.00045753,60]
[332838956,1721562574948,-1866.37,0.00045753,60]
[332838957,1721562574987,-500.0,0.00045753,60]
[332838958,1721562575028,-835.94,0.00045753,60]
[332838959,1721562575067,-1545.24,0.00045753,60]
[332838960,1721562575107,-1314.22,0.00045753,60]
[332838961,1721562575145,-788.87,0.00045753,60]
[332838962,1721562575187,-606.21,0.00045753,60]
[332838963,1721562575223,-500.0,0.00045753,60]
[332838964,1721562575258,-500.0,0.00045753,60]
[332838965,1721562575293,-815.98,0.00045753,60]
[332838966,1721562575329,-505.62272388,0.00045753,60]
[332838967,1721562575365,-960.08,0.00045753,60]
[332838968,1721562575403,-507.25,0.00045753,60]
[332838969,1721562575441,-500.0,0.00045753,60]
[332838970,1721562575479,-1241.56,0.00045753,60]
[332838971,1721562575515,-556.47,0.00045753,60]
[332838972,1721562575552,-500.0,0.00045753,60]
[332838973,1721562575588,-1359.26,0.00045753,60]
[332838974,1721562575622,-500.0,0.00045753,60]
[332838975,1721562575658,-500.0,0.00045753,60]
[332838976,1721562575693,-938.43,0.00045753,60]
[332838977,1721562575729,-1502.83,0.00045753,60]
[332838978,1721562575766,-500.0,0.00045753,60]
[332838979,1721562575996,-500.0,0.00045753,60]
[332838980,1721562576036,-500.0,0.00045753,60]
[332838981,1721562576074,-859.1,0.00045753,60]
[332838982,1721562576113,-1061.95,0.00045753,60]
[332838983,1721562576149,-625.09,0.00045753,60]
[332838984,1721562576183,-500.0,0.00045753,60]
[332838985,1721562576218,-548.02612153,0.00045753,60]
[332838986,1721562576252,-917.46,0.00045753,60]
[332838987,1721562576287,-825.43,0.00045753,60]
[332838988,1721562576321,-583.35,0.00045753,60]
[332838989,1721562576360,-500.0,0.00045753,60]
[332838990,1721562576394,-500.0,0.00045753,60]
[332838991,1721562576427,-500.0,0.00045753,60]
[332838992,1721562576461,-506.32,0.00045753,60]
[332838993,1721562576493,-870.79,0.00045753,60]
[332838994,1721562576526,-1209.94,0.00045753,60]
[332838995,1721562576558,-500.0,0.00045753,60]
[332838996,1721562576592,-761.72,0.00045753,60]
[332838997,1721562576625,-2000.0,0.00045753,60]
[332838998,1721562576659,-1021.77,0.00045753,60]
[332838999,1721562576692,-800.19,0.00045753,60]
[332839000,1721562576726,-500.0,0.00045753,60]
[332839001,1721562576758,-849.87,0.00045753,60]
[332839002,1721562576792,-500.0,0.00045753,60]
[332839003,1721562576825,-525.8,0.00045753,60]
[332839004,1721562576858,-1192.78,0.00045753,60]
[332839005,1721562576892,-500.0,0.00045753,60]
[332839006,1721562576927,-1211.68,0.00045753,60]
[332839007,1721562576963,-500.0,0.00045753,60]
[332839008,1721562576997,-574.26,0.00045753,60]
[332839009,1721562577030,-1554.69,0.00045753,60]
[332839010,1721562577064,-500.0,0.00045753,60]
[332839011,1721562577101,-512.52,0.00045753,60]
[332839012,1721562577138,-579.91907066,0.00045753,60]
[332839013,1721562577174,-500.0,0.00045753,60]
[332839014,1721562577209,-588.29,0.00045753,60]
[332839015,1721562577244,-941.15,0.00045753,60]
[332839016,1721562577281,-568.53,0.00045753,60]
[332839017,1721562577316,-1619.53,0.00045753,60]
[332839018,1721562577351,-972.08,0.00045753,60]
[332839019,1721562577387,-1283.54,0.00045753,60]
[332839020,1721562577426,-500.0,0.00045753,60]
[332839021,1721562577462,-559.12,0.00045753,60]
[332839022,1721562577497,-500.0,0.00045753,60]
[332839023,1721562577532,-500.0,0.00045753,60]
[332839024,1721562577568,-1019.57,0.00045753,60]
[332839025,1721562577603,-646.2003683,0.00045753,60]
[332839026,1721562577641,-500.0,0.00045753,60]
[332839027,1721562577674,-706.48,0.00045753,60]
[332839028,1721562577708,-1210.27,0.00045753,60]
[332839029,1721562577742,-503.32122149,0.00045753,60]
[332839030,1721562577776,-591.17,0.00045753,60]
[332839031,1721562577812,-500.0,0.00045753,60]
[332839032,1721562577847,-500.0,0.00045753,60]
[332839033,1721562577883,-1432.29,0.00045753,60]
[332839034,1721562577919,-1330.89,0.00045753,60]
[332839035,1721562577956,-500.0,0.00045753,60]
[332839036,1721562577992,-500.0,0.00045753,60]
[332839037,1721562578035,-500.0,0.00045753,60]
[332839038,1721562578079,-988.83,0.00045753,60]
[332839039,1721562578128,-1360.2,0.00045753,60]
[332839040,1721562578173,-1961.99,0.00045753,60]
[332839041,1721562578219,-1175.39,0.00045753,60]
[332839042,1721562578265,-500.0,0.00045753,60]
[332839043,1721562578309,-500.0,0.00045753,60]
[332839044,1721562578352,-1667.31,0.00045753,60]
[332839045,1721562578389,-626.11,0.00045753,60]
[332839046,1721562578424,-1087.26,0.00045753,60]
[332839047,1721562578459,-500.0,0.00045753,60]
[332839048,1721562578494,-1168.18,0.00045753,60]
[332839049,1721562578529,-1384.47,0.00045753,60]
[332839050,1721562578564,-1041.33,0.00045753,60]
[332839051,1721562578599,-500.0,0.00045753,60]
[332839052,1721562578633,-1364.5,0.00045753,60]
[332839053,1721562578667,-500.0,0.00045753,60]
[332839054,1721562578700,-500.0,0.00045753,60]
[332839055,1721562578733,-500.0,0.00045753,60]
[332839056,1721562578767,-2000.0,0.00045753,30]
[332839057,1721562578800,-500.0,0.00045753,60]
[332839058,1721562578834,-1043.6,0.00045753,60]
[332839059,1721562578867,-562.21,0.00045753,60]
[332839060,1721562578900,-500.0,0.00045753,60]
[332839061,1721562578934,-1662.91,0.00045753,60]
[332839062,1721562578968,-500.0,0.00045753,60]
[332839063,1721562579001,-828.34,0.00045753,60]
[332839064,1721562579034,-768.8,0.00045753,60]
[332839065,1721562579068,-500.0,0.00045753,60]
[332839066,1721562579103,-699.02,0.00045753,60]
[332839067,1721562579137,-500.0,0.00045753,60]
[332839068,1721562579171,-694.74,0.00045753,60]
[332839069,1721562579205,-500.0,0.00045753,60]
[332839070,1721562579238,-500.0,0.00045753,60]
[332839071,1721562579272,-500.0,0.00045753,60]
[332839072,1721562579307,-802.38,0.00045753,60]
[332839073,1721562579343,-500.0,0.00045753,60]
[332839074,1721562579377,-546.0,0.00045753,60]
[332839075,1721562579410,-1262.18,0.00045753,60]
[332839076,1721562579444,-1932.95,0.00045753,60]
[332839077,1721562579476,-911.09,0.00045753,60]
[332839078,1721562579510,-500.0,0.00045753,60]
[332839079,1721562579547,-500.0,0.00045753,60]
[332839080,1721562579587,-1154.95,0.00045753,60]
[332839081,1721562579622,-500.0,0.00045753,60]
[332839082,1721562579659,-1956.26,0.00045753,60]
[332839083,1721562579877,-500.0,0.00045753,60]
[332839084,1721562579917,-500.0,0.00045753,60]
[332839085,1721562579962,-500.0,0.00045753,60]
[332839086,1721562579998,-916.91,0.00045753,60]
[332839087,1721562580035,-500.0,0.00045753,60]
[332839088,1721562580072,-1208.28,0.00045753,60]
[332839089,1721562580110,-1923.27,0.00045753,60]
[332839090,1721562580146,-694.37,0.00045753,60]
[332839091,1721562580181,-570.93774165,0.00045753,60]
[332839092,1721562580216,-500.0,0.00045753,60]
[332839093,1721562580251,-1666.33,0.00045753,60]
[332839094,1721562580285,-500.0,0.00045753,60]
[332839095,1721562580319,-500.0,0.00045753,60]
[332839096,1721562580353,-500.0,0.00045753,60]
[332839097,1721562580388,-500.0,0.00045753,60]
[332839098,1721562580424,-605.85,0.00045753,60]
[332839099,1721562580457,-500.0,0.00045753,60]
[332839100,1721562580491,-500.0,0.00045753,60]
[332839101,1721562580525,-1044.79,0.00045753,60]
[332839102,1721562580560,-509.4488354,0.00045753,60]
[332839103,1721562580594,-1993.49,0.00045753,60]
[332839104,1721562580629,-2607.43,0.00045753,60]
[332839105,1721562580663,-2442.5,0.00045753,60]
[332839106,1721562580696,-500.0,0.00045753,60]
[332839107,1721562580731,-1156.27,0.00045753,60]
[332839108,1721562580766,-857.7,0.00045753,60]
[332839109,1721562580800,-614.69,0.00045753,60]
[332839110,1721562580832,-1651.31,0.00045753,60]
[332839111,1721562580865,-500.0,0.00045753,60]
[332839112,1721562580901,-964.54,0.00045753,60]
[332839113,1721562580936,-500.0,0.00045753,60]
[332839114,1721562580973,-1410.41,0.00045753,60]
[332839115,1721562581009,-500.0,0.00045753,60]
[332839116,1721562581045,-500.0,0.00045753,60]
[332839117,1721562581080,-1976.74,0.00045753,60]
[332839118,1721562581119,-500.0,0.00045753,60]
[332839119,1721562581156,-500.0,0.00045753,60]
[332839120,1721562581191,-500.0,0.00045753,60]
[332839121,1721562581226,-1210.42,0.00045753,60]
[332839122,1721562581261,-1298.71,0.00045753,60]
[332839123,1721562581296,-500.0,0.00045753,60]
[332839124,1721562581331,-2870.38,0.00045753,60]
[332839125,1721562581364,-1397.0,0.00045753,60]
[332839126,1721562581398,-1090.78,0.00045753,60]
[332839127,1721562581431,-500.0,0.00045753,60]
[332839128,1721562581463,-975.35,0.00045753,60]
[332839129,1721562581495,-500.0,0.00045753,60]
[332839130,1721562581529,-500.0,0.00045753,60]
[332839131,1721562581562,-975.06,0.00045753,60]
[332839132,1721562581596,-588.03,0.00045753,60]
[332839133,1721562581630,-3219.97,0.00045753,60]
[332839134,1721562581663,-1233.64,0.00045753,60]
[332839135,1721562581698,-4349.87,0.00045753,60]
[332839136,1721562581731,-500.0,0.00045753,60]
[332839137,1721562581765,-897.27,0.00045753,60]
[332839138,1721562581798,-500.0,0.00045753,60]
[332839139,1721562581831,-779.84,0.00045753,60]
[332839140,1721562581863,-2831.42,0.00045753,60]
[332839141,1721562581896,-500.0,0.00045753,60]
[332839142,1721562581930,-5862.38,0.00045753,21]
[332839143,1721562581964,-797.05,0.00045753,60]
[332839144,1721562581998,-1449.32,0.00045753,60]
[332839145,1721562582032,-150.0,0.00045753,60]
[332839146,1721562582065,-611.71,0.00045753,60]
[332839147,1721562582099,-500.0,0.00045753,60]
[332839148,1721562582134,-2307.85,0.00045753,60]
[332839149,1721562582168,-1220.31,0.00045753,60]
[332839150,1721562582203,-1547.85,0.00045753,60]
[332839151,1721562582238,-1404.45,0.00045753,60]
[332839153,1721562582273,-500.0,0.00045753,60]
[332839154,1721562582308,-500.0,0.00045753,60]
[332839155,1721562582341,-500.0,0.00045753,60]
[332839156,1721562582374,-2145.84,0.00045753,60]
[332839157,1721562582407,-771.19,0.00045753,60]
[332839158,1721562582441,-558.3,0.00045753,60]
[332839159,1721562582474,-2587.27,0.00045753,60]
[332839160,1721562582508,-892.89,0.00045753,60]
[332839161,1721562582541,-1698.04,0.00045753,60]
[332839162,1721562582575,-500.0,0.00045753,60]
[332839163,1721562582610,-1673.38,0.00045753,60]
[332839164,1721562582648,-4298.51,0.00045753,60]
[332839165,1721562582683,-755.63,0.00045753,60]
[332839166,1721562582719,-500.0,0.00045753,60]
[332839167,1721562582755,-1946.7,0.00045753,60]
[332839168,1721562582793,-516.10741968,0.00045753,60]
[332839169,1721562582831,-976.36,0.00045753,60]
[332839170,1721562582871,-1926.96,0.00045753,60]
[332839171,1721562582909,-1035.15,0.00045753,60]
[332839172,1721562582946,-630.52777541,0.00045753,60]
[332839173,1721562582981,-1557.66,0.00045753,60]
[332839174,1721562583016,-1158.49,0.00045753,60]
[332839175,1721562583050,-500.0,0.00045753,60]
[332839176,1721562583086,-500.0,0.00045753,60]
[332839177,1721562583126,-991.73,0.00045753,60]
[332839178,1721562583162,-2557.51,0.00045753,60]
[332839179,1721562583200,-765.24,0.00045753,60]
[332839180,1721562583234,-500.0,0.00045753,60]
[332839181,1721562583269,-2269.25,0.00045753,60]
[332839182,1721562583301,-500.0,0.00045753,60]
[332839183,1721562583337,-1069.04,0.00045753,60]
[332839184,1721562583370,-509.72,0.00045753,60]
[332839185,1721562583403,-1450.95,0.00045753,60]
[332839186,1721562583436,-500.0,0.00045753,60]
[332839187,1721562583470,-11013.47,0.00045753,60]
[332839188,1721562583690,-3431.18,0.00045753,60]
[332839189,1721562583730,-196.46995048,0.000458,30]
[332839190,1721562583767,-10089.97197586,0.0004588,60]
[332839191,1721562583803,-5545.79508894,0.000459,60]
[332839192,1721562583839,-2677.08342374,0.000459,120]
[332839193,1721562583874,-151.0,0.00045918,120]
[332839194,1721562584755,-49763.29492618,0.00046,46]
[332839195,1721562632041,-855.9,0.00012718,2]
[332839196,1721562632050,-427.19,0.00012737,2]
[332839197,1721562632059,-448.19504997,0.00012787,2]
[332839198,1721562632198,-328.64556,0.00012787,2]
[332839199,1721562632253,-333.29939003,0.00012787,2]
[332839200,1721562632263,-400.0,0.00012792,2]
[332839201,1721562632273,-1385.0,0.000128,2]
[332839202,1721562632283,-250.0,0.00012805,2]
[332839203,1721562632292,-1000.0,0.00012913,2]
[332839204,1721562632301,-5092.85066311,0.00013097,2]
[332839205,1721562632311,-412.19,0.00013097,2]
[332839206,1721562632321,-1888.623241,0.00013333,2]
[332839207,1721562632331,-300.0,0.00013399,2]
[332839208,1721562632340,-780.2523,0.000134,2]
[332839209,1721562632350,-56122.4888,0.000134,2]
[332839210,1721562632361,-700.0,0.000134,4]
[332839212,1721562632370,-499.99,0.00013485,2]
[332839214,1721562632383,-1400.0,0.000135,4]
[332839216,1721562632392,-2100.0,0.000136,4]
[332839218,1721562632401,-2800.0,0.000137,5]
[332839220,1721562632411,-3600.0,0.000138,5]
[332839222,1721562632421,-1772.4321,0.000139,2]
[332839223,1721562632431,-175.32345233,0.000139,2]
[332839224,1721562632440,-167.66739738,0.000139,2]
[332839225,1721562632449,-700.0,0.000139,5]
[332839226,1721562632458,-321.96333991,0.000139,2]
[332839227,1721562632467,-614.51359985,0.000139,2]
[332839228,1721562632476,-179.60853393,0.000139,2]
[332839229,1721562632486,-165.36,0.00013973,2]
[332839230,1721562632495,-174.41,0.00013973,2]
[332839231,1721562632504,-153.64,0.00013973,2]
[332839232,1721562632514,-1000.0,0.00013973,2]
[332839233,1721562632523,-159.62,0.00013973,2]
[332839234,1721562632533,-10886.6133808,0.0001399,3]
[332839235,1721562632542,-1315.67485256,0.00013997,2]
[332839236,1721562632551,-1152.07979419,0.00013998,5]
[332839237,1721562632561,-410.99429308,0.00013999,2]
[332839238,1721562632570,-195.86752818,0.00013999,2]
[332839239,1721562632579,-228.08787237,0.00013999,2]
[332839240,1721562632589,-332.28217106,0.00013999,2]
[332839241,1721562632599,-500.0,0.00013999,2]
[332839242,1721562632608,-500.0,0.00013999,2]
[332839243,1721562632618,-438.4838974,0.00013999,2]
[332839244,1721562632628,-500.0,0.00013999,2]
[332839245,1721562632637,-628.50203903,0.00013999,2]
[332839246,1721562632647,-500.0,0.00013999,2]
[332839247,1721562632656,-633.67822752,0.00013999,2]
[332839248,1721562632666,-500.0,0.00013999,2]
[332839249,1721562632675,-500.0,0.00013999,2]
[332839250,1721562632684,-500.0,0.00013999,2]
[332839251,1721562632693,-1167213.08642775,0.00014,2]
[332839252,1721562632705,-577.76847127,0.00014,2]
[332839253,1721562632715,-186707.77835277,0.00014,2]
[332839254,1721562632726,-45186.23371037,0.00014,2]
[332839255,1721562632736,-758.46063196,0.00014,2]
[332839256,1721562632748,-715.22272661,0.00014,2]
[332839257,1721562632776,-15011.14076,0.00014,2]
[332839259,1721562638165,-8491.66447959,0.00014,2]
[332839260,1721562638220,-600.0,0.00014,2]
[332839261,1721562638231,-31400.0,0.00014,2]
[332839262,1721562638273,-1502277.05631207,0.00014,2]
[332839263,1721562638327,-597.4,0.00014,2]
[332839264,1721562638342,-2709.48663959,0.00014,2]
[332839265,1721562638383,-59607.63042935,0.00014,2]
[332839266,1721562638394,-614.32,0.00014,2]
[332839280,1721562640164,-639.14654176,0.00014,2]
[332839291,1721562640271,-14732.19448898,0.00014,2]
[332839293,1721562640376,-9096.64373114,0.00014,2]
[332839294,1721562640392,-8947.21879473,0.00014,2]
[332839295,1721562640403,-8943.78386462,0.00014,2]
[332839296,1721562640414,-9077.54866152,0.00014,2]
[332839297,1721562640425,-8943.84023489,0.00014,2]
[332839298,1721562640440,-3364.54855239,0.00014,2]
[332839299,1721562640450,-768.95049403,0.00014,2]
[332839300,1721562640522,-769.40917737,0.00014,2]
[332839301,1721562640535,-449.03088406,0.00014,2]
[332839302,1721562640592,-58711.5819714,0.00014,2]
[332839303,1721562640604,-482.23356545,0.00014,2]
[332839304,1721562640616,-350.10500001,0.00014,2]
[332839305,1721562640648,-492.62681269,0.00014,2]
[332839306,1721562640659,-1630.6,0.00014,2]
[332839324,1721562643223,-548.9,0.00014,2]
[332839325,1721562643330,-286476.75448755,0.00014,2]
[332839326,1721562643341,-1110873.31700324,0.00014,2]
[332839327,1721562643352,-319.999995,0.00014,2]
[332839328,1721562643386,-653.31270692,0.00014,2]
[332839329,1721562643397,-58621.91566837,0.00014,2]
[332839330,1721562643493,-265.6000002,0.00014,2]
[332839338,1721562646116,-4036.61298945,0.00014,2]
[332839339,1721562646171,-414.86354645,0.00014,2]
[332839340,1721562646276,-975.861078,0.00014,2]
[332839341,1721562646475,-10463.70163011,0.00014,2]
[332839342,1721562646486,-644.28818466,0.00014,2]
[332839343,1721562646530,-2920.57133529,0.00014,2]
[332839344,1721562646547,-3946.85157832,0.00014,2]
[332839347,1721562646560,-56910.1194644,0.00014,2]
[332839350,1721562926012,161.28,0.00018849,30]
[332839351,1721563115890,200.0,0.00018755,30]
[332839352,1721563115928,200.0,0.00018755,30]
[332839353,1721563115980,213.15095193,0.00018755,30]
[332839354,1721563118591,200.0,0.00018755,30]
[332839355,1721563245921,332.15906142,0.00018661,30]
[332839357,1721563446862,161.28,0.00018849,30]
[332839358,1721563462957,534.18,0.00011034,2]
[332839359,1721563492180,1225.74254615,0.00011034,2]
[332839360,1721563607567,4730.55086825,0.00011034,2]
[332839361,1721563688653,3153.70057883,0.00011034,2]
[332839366,1721563778081,2628.08381569,0.00011034,2]
[332839371,1721563832560,-500.0,0.00012626,2]
[332839372,1721563832575,-6352.49444531,0.00012708,2]
[332839373,1721563832586,-1000.0,0.00012712,2]
[332839374,1721563832595,-165.12,0.00012808,2]
[332839375,1721563832604,-2575.21,0.00012922,2]
[332839376,1721563832615,-268.36,0.00012939,2]
[332839377,1721563832624,-264.43,0.00012943,2]
[332839378,1721563832633,-433.79,0.00012962,2]
[332839379,1721563832643,-300.0,0.00012971,2]
[332839380,1721563832654,-13163.11,0.00012972,2]
[332839381,1721563832663,-200.0,0.00012976,2]
[332839382,1721563832673,-150.0,0.00012984,2]
[332839383,1721563832682,-152.35,0.00012991,2]
[332839384,1721563832692,-534.18,0.00013298,2]
[332839385,1721563832701,-250.0,0.00013302,2]
[332839386,1721563832710,-228.62187041,0.00013302,2]
[332839387,1721563832731,-189.60374636,0.00013302,2]
[332839388,1721563832741,-175.23396229,0.00013302,2]
[332839389,1721563832750,-175.55911935,0.00013303,2]
[332839390,1721563832762,-257.25610166,0.00013303,2]
[332839391,1721563832771,-141.9478132,0.00013303,2]
[332839402,1721563832865,-694.02880231,0.00013303,2]
[332839404,1721563832874,-456.65304924,0.00013303,2]
[332839406,1721563832883,-157.60959533,0.0001331,2]
[332839408,1721563832893,-1265.58472584,0.0001331,2]
[332839410,1721563832902,-499.99,0.00013374,2]
[332839412,1721563832911,-281.27947951,0.00013374,2]
[332839414,1721563832921,-1369.23166798,0.00013374,2]
[332839416,1721563832930,-200.0,0.000135,4]
[332839418,1721563832940,-178.16,0.0001352,2]
[332839420,1721563832949,-500.0,0.000136,4]
[332839422,1721563832958,-1397.46267978,0.00013698,2]
[332839424,1721563832970,-4213.65822694,0.00013698,2]
[332839426,1721563832979,-150.0,0.00013698,2]
[332839428,1721563832988,-451.7,0.00013699,2]
[332839431,1721563832998,-200.0,0.00013699,2]
[332839433,1721563833009,-2044.95,0.00013699,2]
[332839435,1721563833019,-10408.94,0.00013699,2]
[332839437,1721563833029,-250.0,0.00013699,2]
[332839439,1721563833039,-700.0,0.000137,5]
[332839440,1721563833048,-164.32825762,0.0001379,2]
[332839442,1721563833058,-5573.86732917,0.0001379,2]
[332839444,1721563833068,-1000.0,0.000138,5]
[332839446,1721563833077,-79663.0,0.0001386,2]
[332839448,1721563833087,-7286.62320771,0.00013879,2]
[332839450,1721563833097,-4469.17282066,0.00013879,2]
[332839452,1721563833107,-14366.25712607,0.00013881,2]
[332839454,1721563833116,-618.59012886,0.0001389,2]
[332839456,1721563833126,-3762.123,0.0001389,2]
[332839458,1721563833136,-2450.376,0.0001389,2]
[332839460,1721563833145,-5136.9101,0.0001389,2]
[332839462,1721563833155,-30653.9396,0.0001389,2]
[332839464,1721563833164,-1286.0501,0.0001389,2]
[332839466,1721563833174,-344.4,0.0001389,2]
[332839468,1721563833184,-164.32825762,0.00013891,2]
[332839470,1721563833193,-618.59012883,0.00013893,2]
[332839472,1721563833204,-618.59012883,0.00013895,2]
[332839474,1721563833214,-618.59012883,0.00013898,2]
[332839476,1721563833223,-331.6237,0.000139,2]
[332839478,1721563833233,-618.59012883,0.000139,2]
[332839480,1721563833243,-1300.0,0.000139,5]
[332839482,1721563833253,-876.22026358,0.000139,2]
[332839485,1721563833267,-265.01109065,0.000139,2]
[332839487,1721563833277,-194.85349123,0.000139,2]
[332839489,1721563833287,-409.67573322,0.000139,2]
[332839491,1721563833296,-184.72070106,0.00013902,2]